Cogmind - Beta 16.1 @@@ ROGUE MODE // 2026.04.27 @ 21:24:55 Player: JovialTruth Result: Destroyed by Y-45 Defender with Heavy Assault Rifle Performance ------------- Evolutions (2) 1000 Regions Visited (4) 800 Robots Destroyed (17) 85 Value Destroyed (338) 338 Prototype IDs (0) 0 Alien Tech Used (0) 0 Bonus (190) 190 TOTAL SCORE: 2413 Bonus ------- Pacifist 200 Friendly Fire -10 Cogmind --------- Core Integrity 0/550 Matter 281/300 Energy 98/100 System Corruption 2% Temperature Cool (9) Movement Core (50) Location -8/Materials Parts ------- > --- POWER (1) -------- (None) > --- PROPULSION (3) --- (None) > --- UTILITY (5) ------ Visual Processing Unit > --- WEAPON (2) ------- (None) > --- INVENTORY (5) ---- Light Ion Engine Structural Scanner Improved Light Armor Plating Improved Light Armor Plating Grenade Launcher Peak State ------------ > --- POWER ------------ Light Ion Engine > --- PROPULSION ------- Flight Unit > --- UTILITY ---------- Visual Processing Unit Terrain Scanner Improved Light Armor Plating > --- WEAPON ----------- High-powered Shotgun Mace > --- INVENTORY -------- Light Ion Engine Improved Light Armor Plating Improved Light Armor Plating [Rating: 13] Favorites ----------- Power Light Ion Engine Engine Light Ion Engine Power Core Light Nuclear Core Propulsion Wheel Wheel Wheel Flight Unit Flight Unit Utility Visual Processing Unit Device Terrain Scanner Storage Small Storage Unit Processor Visual Processing Unit Protection Improved Light Armor Plating Weapon Mace Energy Gun Small Laser Ballistic Gun High-powered Shotgun Impact Weapon Mace Special Melee Weapon Datajack Build | -11 -10 -10 -9 -8 ------- Run | Yrd Mat Min Mat Mat Slots Evolved 4 | . . . 2 2 Power . | . . . . . Propulsion 1 | . . . . 1 Utility 3 | . . . 2 1 Weapon . | . . . . . Parts Attached 23 | 5 3 1 3 11 Power 5 | 1 1 1 . 2 Engine 4 | 1 . 1 . 2 Core 1 | . 1 . . . Reactor . | . . . . . Propulsion 6 | 2 . . 1 3 Treads . | . . . . . Leg . | . . . . . Wheel 3 | 2 . . 1 . Hover . | . . . . . Flight 3 | . . . . 3 Utility 7 | 1 1 . 1 4 Device 2 | . . . . 2 Storage 1 | 1 . . . . Processor 1 | . 1 . . . Hackware . | . . . . . Protection 3 | . . . 1 2 Artifact . | . . . . . Weapon 5 | 1 1 . 1 2 Energy Gun 1 | 1 . . . . Energy Cannon . | . . . . . Ballistic Gun 2 | . . . . 2 Ballistic Cannon . | . . . . . Launcher . | . . . . . Special Weapon . | . . . . . Impact Weapon 1 | . . . 1 . Slashing Weapon . | . . . . . Piercing Weapon . | . . . . . Special Melee Weapon 1 | . 1 . . . Unidentified Prototypes . | . . . . . Parts Lost 17 | . 1 1 4 11 Power 5 | . 1 . 1 3 Propulsion 5 | . . 1 1 3 Utility 2 | . . . . 2 Weapon 5 | . . . 2 3 Highest Loss Streak 3 | . 1 1 3 3 To Critical Strikes . | . . . . . Average Backups 2 | . 1 1 1 3 Power . | . 1 1 1 . Propulsion . | . . . . . Utility . | . . . . 1 Weapon . | . . . . . Tool/Special . | . . . . . Unused Backups 3 | . . . . 3 Power 1 | . . . . 1 Propulsion . | . . . . . Utility 1 | . . . . 1 Weapon 1 | . . . . 1 Tool/Special . | . . . . . Average Slot Usage (%) 57 | . 84 100 41 46 Engine 5 | . 4 14 4 5 Core 1 | . 8 . . . Wheel 9 | . 28 28 4 1 Flight 3 | . . . . 7 Device 2 | . . . . 5 Storage 4 | . 14 14 3 . Processor 10 | . 9 14 11 9 Protection 4 | . . . 4 6 Energy Gun 5 | . 14 14 3 . Ballistic Gun 1 | . . . . 4 Impact Weapon 5 | . . . 6 7 Special Melee Weapon 3 | . 5 14 2 . Peak Build Rating 13 | 5 10 8 7 13 Average Rating 7 | 3 7 7 5 9 On Entrance 5 | . 5 7 7 7 Avg Prop Armor Cover (%) . | . . . . . Naked Turns . | . . . . . Heaviest Build 12 | 9 12 12 12 12 Greatest Support 20 | 20 20 20 12 12 Greatest Overweight (x) 3 | . . 1 2 3 Average Overweight (x) . | . . . . . Largest Inventory Capacity 8 | 8 8 8 8 5 Average Capacity 6 | 6 8 8 5 5 Most Carried 5 | 2 2 1 2 5 Average Carried 2 | . 1 1 1 3 Final Capacity 8 | 8 8 8 5 5 Final Carried 5 | 1 2 1 2 5 Class Distribution -------------------- 90% | Mutant 9% | Scavenger-Mutant Dominant Class ---------------- Mutant | -10/Materials Mutant | -10/Mines Mutant | -9/Materials Mutant | -8/Materials Resources | -11 -10 -10 -9 -8 ----------- Run | Yrd Mat Min Mat Mat Matter Collected 499 | 213 57 . 15 214 Remotely . | . . . . . Salvage Created 473 | . . . 172 301 Parts 31 | . . . 8 23 Haulers Intercepted . | . . . . . Recyclers Shooed 1 | . . . . 1 Parts Field Recycled . | . . . . . Retrieved Matter . | . . . . . Parts Self-Destructed . | . . . . . Prevented . | . . . . . Parts Restored . | . . . . . Kills | -11 -10 -10 -9 -8 ------- Run | Yrd Mat Min Mat Mat Combat Hostiles Destroyed 13 | . . . 4 9 Melee 3 | . . . 2 1 Guns 6 | . . . . 6 Classes Destroyed 6 | . . . 2 4 Worker 2 | . . . . 2 Builder 1 | . . . . 1 Recycler 1 | . . . . 1 Swarmer 7 | . . . . 7 Grunt 4 | . . . 2 2 Sentry 2 | . . . 2 . Best Kill Streak 3 | . . . 2 3 Combat Bots Only 3 | . . . 2 3 Max Kills in Single Turn 1 | . . . 1 1 Gunslinging . | . . . . . Exploded . | . . . . . Melee 1 | . . . 1 1 Uniques/NPCs Destroyed . | . . . . . Combat | -11 -10 -10 -9 -8 -------- Run | Yrd Mat Min Mat Mat Hostile Shots Fired 202 | . 18 6 36 142 Missed 48 | . 2 2 8 36 Hits 154 | . 16 4 28 106 Projectile 154 | . 16 4 28 106 Critical Strikes 9 | . . 1 1 7 Damage Taken 2038 | . 176 33 348 1481 Core 793 | . 64 10 166 553 Absorbed by Shields . | . . . . . Core Remaining (%) 76 | 100 . 70 58 . Volleys Fired 41 | . 5 . 4 32 Largest 1 | . 1 . 1 1 Hottest 40 | . 40 . 40 25 Shots Fired 41 | . 5 . 4 32 Gun 41 | . 5 . 4 32 Cannon . | . . . . . Launcher . | . . . . . Special . | . . . . . Kinetic 32 | . . . . 32 Thermal 9 | . 5 . 4 . Explosive . | . . . . . Electromagnetic . | . . . . . Robot Hit Streak 5 | . 2 . 3 5 Robot Miss Streak 4 | . 2 . 3 4 Penetration Max . | . . . . . Secondary Targets . | . . . . . Shots Hit Robots 57 | . 5 . 16 36 Core Hits 18 | . . . 2 16 Critical Kills . | . . . . . Critical Parts Destroyed 2 | . . . 2 . Critical Strikes 2 | . . . 2 . Smash 2 | . . . 2 . Melee Attacks 29 | . 4 . 13 12 Impact 25 | . . . 13 12 Slashing . | . . . . . Piercing . | . . . . . Sneak Attacks 8 | . 3 . 1 4 Combat Hostiles 1 | . 1 . . . Follow-up Attacks . | . . . . . Damage Inflicted 1276 | . 32 . 420 824 Guns 493 | . 32 . 34 427 Cannons . | . . . . . Explosions . | . . . . . Melee 776 | . . . 386 390 Ramming 7 | . . . . 7 Kinetic 427 | . . . . 427 Thermal 66 | . 32 . 34 . Explosive . | . . . . . Electromagnetic . | . . . . . Impact 776 | . . . 386 390 Slashing . | . . . . . Piercing . | . . . . . Highest Corruption 2 | . . . . 2 Average Corruption 2 | . . . . 2 Corruption Purged . | . . . . . Corruption Blocked . | . . . . . Overload Shots . | . . . . . Overflow Damage 174 | . . . 98 76 Projectiles . | . . . . . Explosions . | . . . . . Melee 174 | . . . 98 76 Knockbacks 2 | . . . 1 1 Impact 2 | . . . 1 1 Kinetic . | . . . . . Secondary . | . . . . . Self-Inflicted Damage 3 | . . . . 3 Shots . | . . . . . Rammed 3 | . . . . 3 Targets Rammed 3 | . . . . 3 Kicked . | . . . . . Crushed . | . . . . . Highest Temperature 44 | . 44 . 1 31 Average Temperature 18 | . 25 . 1 13 Received Heat Transfer 966 | . 96 . 168 702 Siege Activations . | . . . . . Martial Activations . | . . . . . Shielding Activations . | . . . . . Robots Disrupted . | . . . . . Combat Hostiles . | . . . . . Robots Corrupted 4 | . . . 2 2 Combat Hostiles 4 | . . . 2 2 Parts Fried 5 | . . . 3 2 Impact Corruptions 9 | . . . 4 5 Robots Melted . | . . . . . Combat Hostiles . | . . . . . Parts Melted . | . . . . . Heat Transferred 150 | . 75 . 75 . Parts Sabotaged . | . . . . . Parts Stolen . | . . . . . Parts Stripped . | . . . . . Power Chain Reactions . | . . . . . Alert | -11 -10 -10 -9 -8 ------- Run | Yrd Mat Min Mat Mat Maximum Alert Level . | . . . . . Low Security (%) 100 | 100 100 100 100 100 Level 1 . | . . . . . Level 2 . | . . . . . Level 3 . | . . . . . Level 4 . | . . . . . Level 5 . | . . . . . High Security . | . . . . . Max Security . | . . . . . Peak Influence 168 | . . . 110 168 Initial 20 | . . . . 20 Average 50 | . . . 45 91 Influence Increases 660 | . . . 190 470 Destroy 0b10 Robot/C 260 | . . . 80 180 Destroy 0b10 Robot/NC 20 | . . . . 20 Destroy Leader 50 | . . . 20 30 Lose Combat Pursuer 330 | . . . 90 240 Influence Decreases 510 | . . . 140 370 Entered New Map 30 | . . . . 30 Time Decay 340 | . . . 110 230 Lost Part 140 | . . . 30 110 Squads Dispatched 3 | . 1 . 1 1 Investigation . | . . . . . Extermination . | . . . . . Reinforcement 3 | . 1 . 1 1 Assault . | . . . . . Garrison . | . . . . . Intercept . | . . . . . Searches Triggered . | . . . . . Construction Impeded . | . . . . . Haulers Reinforced . | . . . . . Active Scanning Responses . | . . . . . Cargo Convoy Interrupts . | . . . . . Stealth | -11 -10 -10 -9 -8 --------- Run | Yrd Mat Min Mat Mat Distress Signals 1 | . . . . 1 Communications Jammed . | . . . . . Distress Signals . | . . . . . Times Spotted 54 | . 8 3 11 32 Peak Tracking Total 9 | . 5 3 5 9 Tactical Retreats 10 | . . . 3 7 Traps | -11 -10 -10 -9 -8 ------- Run | Yrd Mat Min Mat Mat Traps Triggered 1 | . . . . 1 Indirectly . | . . . . . Trap Hack Attempts . | . . . . . Triggered . | . . . . . Disarmed . | . . . . . Reprogrammed . | . . . . . Reused . | . . . . . Traps Extracted . | . . . . . Installed . | . . . . . Triggered . | . . . . . Machines | -11 -10 -10 -9 -8 ---------- Run | Yrd Mat Min Mat Mat Machines Disabled . | . . . . . Max in Single Turn . | . . . . . Machines Repaired . | . . . . . Machines Dismantled . | . . . . . Machines Sabotaged . | . . . . . Overloaded Fab Kills . | . . . . . Hacking | -11 -10 -10 -9 -8 --------- Run | Yrd Mat Min Mat Mat Machines Accessed 2 | . . . 1 1 Terminals 2 | . . . 1 1 Fabricators . | . . . . . Repair Stations . | . . . . . Recycling Units . | . . . . . Scanalyzers . | . . . . . Garrison Access . | . . . . . Total Hacks 3 | . . . 2 1 Successful 2 | . . . 1 1 Failed 1 | . . . 1 . Catastrophic . | . . . . . Database Lockouts . | . . . . . Manual . | . . . . . Terminals 3 | . . . 2 1 Fabricators . | . . . . . Repair Stations . | . . . . . Recycling Units . | . . . . . Scanalyzers . | . . . . . Garrison Access . | . . . . . Terminal Hacks 2 | . . . 1 1 Record 1 | . . . . 1 Alert Level 1 | . . . 1 . Fabricator Hacks . | . . . . . Repair Station Hacks . | . . . . . Recycling Unit Hacks . | . . . . . Scanalyzer . | . . . . . Garrison Access Hacks . | . . . . . Unauthorized Hacks . | . . . . . Terminals . | . . . . . Fabricators . | . . . . . Repair Stations . | . . . . . Recycling Units . | . . . . . Scanalyzers . | . . . . . Garrison Access . | . . . . . Data Cores Recovered . | . . . . . Used . | . . . . . Hacking Detections 2 | . . . 1 1 Full Trace Events . | . . . . . Feedback Events . | . . . . . Feedback Blocked . | . . . . . Robot Schematics Acquired . | . . . . . Robots Built . | . . . . . Authchips . | . . . . . Time . | . . . . . Total Robot Build Rating . | . . . . . Part Schematics Acquired . | . . . . . Parts Built . | . . . . . Authchips . | . . . . . Time . | . . . . . Total Part Build Rating . | . . . . . Part Studies Acquired . | . . . . . Parts Repaired . | . . . . . Time . | . . . . . Parts Recycled . | . . . . . Recycled Matter . | . . . . . Retrieved Matter . | . . . . . Retrieved Components . | . . . . . Parts Scanalyzed . | . . . . . Part Schematics Acquired . | . . . . . Parts Damaged . | . . . . . Bothacking | -11 -10 -10 -9 -8 ------------ Run | Yrd Mat Min Mat Mat Used RIF Installer . | . . . . . Robots Hacked 1 | . 1 . . . Non-combat 1 | . 1 . . . Combat . | . . . . . Robot Hacks Applied 2 | . 2 . . . no_distress 2 | . 2 . . . Relay Couplers Released . | . . . . . Fabnet Peak Effective % . | . . . . . Robots Rewired . | . . . . . Allies Hacked . | . . . . . Hacks Repelled . | . . . . . Allies | -11 -10 -10 -9 -8 -------- Run | Yrd Mat Min Mat Mat Total Allies . | . . . . . Largest Group . | . . . . . Highest-Rated Group . | . . . . . Highest-Rated Ally . | . . . . . Total Orders . | . . . . . Ally Attacks . | . . . . . Total Damage . | . . . . . Kills . | . . . . . Allies Corrupted . | . . . . . Allies Melted . | . . . . . Intel | -11 -10 -10 -9 -8 ------- Run | Yrd Mat Min Mat Mat Active Infowar (turns) 1019 | . 128 110 302 479 Optics 1019 | . 128 110 302 479 Terrain 259 | . . . . 259 Structural 37 | . . . . 37 Robot Analysis Total . | . . . . . Derelict Logs Recovered . | . . . . . Drone Launches . | . . . . . Drone Recoveries . | . . . . . Exploration | -11 -10 -10 -9 -8 ------------- Run | Yrd Mat Min Mat Mat Turns Passed 1146 | 60 192 110 302 482 Spaces Moved 1155 | 65 214 136 264 476 Core 220 | 3 . . 134 83 Treads . | . . . . . Legs . | . . . . . Wheels 576 | 62 214 136 130 34 Hover . | . . . . . Flight 359 | . . . . 359 Fastest Speed 37 | 50 80 80 50 37 Average Speed 78 | 78 80 80 89 70 Slowest Speed 200 | 80 80 95 150 200 Overloaded Moves . | . . . . . Propulsion Burnouts . | . . . . . Robots Hopped 4 | . . . . 4 Potential Cave-ins . | . . . . . Cave-ins Triggered . | . . . . . Exploration Rate (%) 27 | 4 30 43 23 35 Regions Visited 4 Branch Regions 1 Pre-discovered Areas . | . . . . . Known Exits Taken . | . . . . . Unknown Exits Taken 4 | 1 1 1 1 . Scrap Searched . | . . . . . Spaces Dug . | . . . . . Terrain Destroyed . | . . . . . Melee . | . . . . . Projectile . | . . . . . AOE . | . . . . . Terrain Rammed . | . . . . . Walls Destroyed . | . . . . . Machines Disabled . | . . . . . Actions | -11 -10 -10 -9 -8 --------- Run | Yrd Mat Min Mat Mat Total 1297 | 71 226 136 302 562 Wait 36 | . . . 18 18 Move 1143 | 64 213 135 263 468 Hop 4 | . . . . 4 Pick Up 7 | 2 1 . . 4 Fast Attach 19 | 4 2 . 3 10 Attach 6 | 1 . 1 . 4 Detach 6 | . . . 1 5 Swap 1 | . 1 . . . Drop 2 | . . . . 2 Fire 41 | . 5 . 4 32 Melee 29 | . 4 . 13 12 Ram 3 | . . . . 3 Kick . | . . . . . Crush . | . . . . . Escape Stasis . | . . . . . Rewire . | . . . . . Trap . | . . . . . Miscellaneous . | . . . . . Route ------- -11/Scrapyard -10/Materials (discovered 3 exits: *Mat / [*Min] / [*Sub]) -10/Mines (discovered 2 exits: *Mat x2) -9/Materials -8/Materials (discovered 1 exit: [*Sto]) History --------- Turn | Location | Event 6 | -11/Scrapyard | Discovered new exit (range 15) 61 | -11/Scrapyard | Entered Materials 62 | -10/Materials | Met a group of wandering Federalists 71 | -10/Materials | Discovered new exit (range 15) 152 | -10/Materials | Discovered new exit (range 18) 152 | -10/Materials | Discovered new exit (range 11) 253 | -10/Materials | Entered Mines 312 | -10/Mines | Build established: Mutant 348 | -10/Mines | Discovered new exit (range 14) 359 | -10/Mines | Discovered new exit (range 4) 363 | -10/Mines | Entered Materials 363 | -9/Materials | Evolved 2 slots: Utility x2 515 | -9/Materials | Lost 3 parts (1p1n1w) 613 | -9/Materials | Discovered new exit (range 12) 665 | -9/Materials | Entered another Materials area 665 | -8/Materials | Evolved 2 slots: Propulsion x1, Utility x1 799 | -8/Materials | Lost 3 parts (1p1n1u) 861 | -8/Materials | Discovered new exit (range 4) 1126 | -8/Materials | Core integrity fell below 50% 1145 | -8/Materials | Core integrity fell below 20% 1147 | -8/Materials | Destroyed by Y-45 Defender with Heavy Assault Rifle Last Messages --------------- You are entering the active sensor range of a Heavy class robot, which gives away their position but also has a chance to call more squads to reinforce the local area while you are within range. 01077_ Sneak attack on K-01 Serf. 01077_ K-01 Serf destroyed. 01078_ Extracted 15 matter. 01094_ Acquired Lgt. Deuterium Engine. 01095_ K-01 Serf collects debris. 01103_ Acquired Hpw. Shotgun. 01132_ Critical hit (Burn: +37). 01133_ Lgt. Deuterium Engine destroyed. 01133_ Critical hit (Burn: +37). 01138_ Hpw. Shotgun destroyed. 01138_ G-50 Soldier destroyed. 01141_ Mace destroyed. 01144_ Slammed into Y-45 Defender. 01144_ Destabilizing: System interference. 01144_ Visual Processing Unit temporarily disabled. 01145_ Slammed into Y-45 Defender. 01146_ Destabilizing: System corrupted (+2). Map ----- +----------------------------------------------------+ | | | | | | | | | | | | | | | | | | | | | ????????????????????????????????????????? | | ????????????????????????????????????????? | | ????????????????????????????????????????? | | ????????????????????????????????????????? | | ????????????????????????????????????????? | | ????????????????????????????????????????? | | ????????????????????????????????????????? | | ????????????????????????????????????????? | | ????????????????????????????????????????? | | ????????????????????????????????????????? | | ##??????????????????????????########????? | | # ??????????????????????#### !!* #????? | | +??????????????????#????# # !! #????? | | #??????????????????# ???# g# ! #????? | | #??????????#+####### ###Y g[%= #????? | | ########## r @ g# ! #????? | | m # #????? | | ###??# #############/#########????? | | ###?????????????# w /#????????? | | ""#?????????????# #????????? | | T"#?????????????# """ """ #????????? | | ""#?????????????+ """ """ #????????? | | """ ###?????????????# """ """ #????????? | | """ #???????????????# #????????? | | """ ##??????????????# #????????? | | """ ##??????????????# #????????? | | ##??????????????##+########????????? | | ##???????????????# #???????????????? | | """ ##???????????????# #???????????????? | | """ /##???????????????#=#???????????????? | | """ ##???? ??????#%#???????????????? | | """ ############?????#!#???????????????? | | ######## ###?????# #???????????????? | | ## T ##?????# #???????????????? | | """ ## =!] ##?????# #???????????????? | | """ ## =! ######## ##??????????????? | | """ "# =! ######## ##??????????????? | | """ T# / ##??????????????? | | "# """ ######## ##??????????????? | | ## """ ######## ##### #???????? | +----------------------------------------------------+ Best States ------------- Heat Dissipation 31 Energy Generation 14 Energy Capacity 250 Matter Stores 300 Matter Capacity 300 Sight Range 18 Terrain Scan Range 14 Terrain Scan Density 10 Armor Coverage 150 Evasion (%) 62 Item Schematics ----------------- None Robot Schematics ------------------ None Fabricated ------------ Nothing Repaired ---------- Nothing Studied --------- None Alien Tech Used ----------------- None Achievements -------------- Ghost 'Em Challenges ------------ None Game ------ Seed BiomechanicalRelayHarness Manual? 0 Play Time 00:22:16 Cumulative 5.0 hours Start 2026.04.27 @ 21:03:48 End 2026.04.27 @ 21:24:55 Sessions 1 Manual Loads 0 Difficulty Rogue Special Mode None Game No. 7 Rogue 7 Adventurer 0 Explorer 0 Win Type - Total 0 Types 0/0/0/0/0/0/0/0/0/0 Lore% 1 Gallery% 5 Achievement% 6 Wizard Run 0 Options --------- Layout 0 ASCII 1 Keyboard 1 Movement Vi Keybinds 0 Fullscreen 1 Font 36/X11++ Map View 76x50 Zoom Use 0% Tactical HUD 1 Map Filters NONE Filters NONE Steam 1 RUN: e46040c7-4d64-40b5-b0f1-41d67ca64f48